fUSD/lending_fUSD_20250611
["ID","MTS","AMOUNT","RATE_DAILY","PERIOD"]
[365379066,1749633040566,-492.85,0.00017294,2]
[365379068,1749633040575,-301.07,0.00017294,2]
[365379070,1749633040585,-509.09,0.00017294,2]
[365379072,1749633040594,-504.26,0.00017294,2]
[365379074,1749633040603,-303.37,0.00017294,2]
[365379076,1749633040613,-490.47,0.00017294,2]
[365379078,1749633040623,-503.8,0.00017294,2]
[365379080,1749633040632,-508.25,0.00017294,2]
[365379082,1749633040642,-301.17,0.00017294,2]
[365379084,1749633040651,-505.72,0.00017294,2]
[365379086,1749633040660,-501.15,0.00017294,2]
[365379088,1749633040670,-506.35,0.00017294,2]
[365379090,1749633040679,-301.19,0.00017294,2]
[365379092,1749633040688,-496.9,0.00017294,2]
[365379094,1749633040698,-305.85,0.00017295,2]
[365379095,1749633040707,-304.36,0.00017295,2]
[365379097,1749633040718,-497.58,0.00017295,2]
[365379099,1749633040727,-501.88,0.00017295,2]
[365379101,1749633040736,-495.15,0.00017295,2]
[365379103,1749633040746,-497.01,0.00017295,2]
[365379105,1749633040756,-504.05,0.00017295,2]
[365379107,1749633040768,-495.04,0.00017295,2]
[365379109,1749633040778,-502.49,0.00017295,2]
[365379111,1749633040787,-302.3,0.00017295,2]
[365379113,1749633040796,-300.96,0.00017295,2]
[365379115,1749633040807,-496.27,0.00017295,2]
[365379117,1749633040816,-508.58,0.00017295,2]
[365379119,1749633040826,-504.99,0.00017295,2]
[365379121,1749633040838,-304.13,0.00017296,2]
[365379123,1749633040847,-499.95,0.00017296,2]
[365379125,1749633040856,-499.13,0.00017296,2]
[365379127,1749633040865,-300.15,0.00017296,2]
[365379129,1749633040874,-300.47,0.00017296,2]
[365379131,1749633040883,-302.95,0.00017296,2]
[365379133,1749633040892,-304.23,0.00017296,2]
[365379135,1749633040901,-302.89,0.00017296,2]
[365379137,1749633040911,-300.7,0.00017296,2]
[365379139,1749633040921,-305.92,0.00017296,2]
[365379141,1749633040930,-300.3,0.00017296,2]
[365379143,1749633040939,-305.97,0.00017296,2]
[365379145,1749633040948,-304.85,0.00017296,2]
[365379146,1749633040957,-491.94,0.00017296,2]
[365379148,1749633040967,-492.58,0.00017296,2]
[365379150,1749633040976,-497.85,0.00017296,2]
[365379152,1749633040985,-502.64,0.00017296,2]
[365379154,1749633040995,-491.18,0.00017296,2]
[365379156,1749633041004,-495.05,0.00017296,2]
[365379159,1749633041014,-495.57,0.00017296,2]
[365379161,1749633041024,-500.88,0.00017296,2]
[365379163,1749633041033,-493.81,0.00017296,2]
[365379165,1749633041043,-494.7,0.00017296,2]
[365379167,1749633041053,-501.44,0.00017296,2]
[365379169,1749633041062,-491.07,0.00017296,2]
[365379171,1749633041070,-507.43,0.00017296,2]
[365379173,1749633041081,-490.31,0.00017296,2]
[365379175,1749633041090,-503.42,0.00017296,2]
[365379177,1749633041099,-508.96,0.00017296,2]
[365379179,1749633041109,-502.5,0.00017296,2]
[365379181,1749633041119,-490.85,0.00017296,2]
[365379183,1749633041128,-503.03,0.00017296,2]
[365379185,1749633041137,-501.03,0.00017296,2]
[365379187,1749633041147,-499.74,0.00017296,2]
[365379189,1749633041155,-492.2,0.00017296,2]
[365379191,1749633041164,-497.0,0.00017296,2]
[365379193,1749633041174,-494.0,0.00017296,2]
[365379195,1749633041183,-509.09,0.00017296,2]
[365379197,1749633041192,-507.35,0.00017296,2]
[365379199,1749633041201,-503.15,0.00017296,2]
[365379201,1749633041210,-494.44,0.00017296,2]
[365379202,1749633041219,-576.37,0.00017296,2]
[365379204,1749633041229,-150.0,0.00017336,7]
[365379206,1749633041238,-6309.72,0.00017363,2]
[365379208,1749633041247,-250.0,0.00017453,2]
[365379210,1749633041256,-4537.47,0.00017523,2]
[365379212,1749633041265,-267.18,0.00017529,2]
[365379214,1749633041275,-4218.27,0.00017563,2]
[365379216,1749633041284,-1000.0,0.00017612,2]
[365379218,1749633041293,-150.0,0.00017728,2]
[365379220,1749633041302,-600.0,0.0001778,4]
[365379222,1749633041311,-217.19443656,0.000179,2]
[365379224,1749633041322,-151.72,0.00018,2]
[365379226,1749633041331,-304.68,0.00018319,2]
[365379228,1749633041340,-503.73,0.00018319,2]
[365379230,1749633041349,-509.35,0.00018319,2]
[365379232,1749633041358,-490.89,0.00018319,2]
[365379234,1749633041368,-300.42,0.00018319,2]
[365379236,1749633041377,-497.82,0.00018319,2]
[365379238,1749633041386,-503.06,0.00018319,2]
[365379240,1749633041395,-420.0,0.00018774,2]
[365379242,1749633041405,-165.26,0.00018818,2]
[365379244,1749633041414,-383.74123587,0.00018878,2]
[365379245,1749633041423,-202.0,0.00018892,4]
[365379246,1749633041433,-600.0,0.00018911,4]
[365379247,1749633041443,-600.0,0.00018912,4]
[365379248,1749633041452,-207.4,0.00018999,2]
[365379249,1749633041462,-151.0,0.00018999,2]
[365379250,1749633041472,-666.0,0.00019105,2]
[365379268,1749633041631,-163.35,0.00019178,2]
[365379272,1749633041692,-163.35,0.00019178,2]
[365379274,1749633041701,-162.78,0.00019178,2]
[365379276,1749633041711,-250.88603694,0.00019399,2]
[365379278,1749633041720,-383.41380317,0.00019399,2]
[365379280,1749633041729,-182.24021869,0.00019399,2]
[365379282,1749633041739,-285.60002475,0.00019399,2]
[365379284,1749633041748,-28504.0,0.000194,2]
[365379286,1749633041760,-197.40331613,0.00019455,2]
[365379288,1749633041772,-576.37,0.0001956,2]
[365379290,1749633041782,-9268.18153491,0.000197,2]
[365379292,1749633041791,-5562.0,0.000197,3]
[365379294,1749633041801,-2446.366,0.00019708,2]
[365379296,1749633041810,-155.0,0.00019708,2]
[365379298,1749633041819,-2349.333,0.00019708,2]
[365379300,1749633041828,-1318.06236132,0.0001971,2]
[365379302,1749633041837,-1318.06236129,0.00019731,2]
[365379304,1749633041847,-1318.06236129,0.00019752,2]
[365379306,1749633041857,-1318.06236129,0.00019773,2]
[365379308,1749633041866,-1318.06236129,0.00019794,2]
[365379310,1749633041875,-160.99851794,0.000198,2]
[365379312,1749633041884,-13406.9574026,0.000198,2]
[365379314,1749633041893,-910.11,0.000198,2]
[365379316,1749633041902,-910.11,0.000198,2]
[365379318,1749633041912,-4538.54288766,0.0001981,2]
[365379320,1749633041921,-72327.83264804,0.0001981,2]
[365379322,1749633041930,-26449.94850462,0.0001981,2]
[365379324,1749633041940,-37515.57213007,0.0001981,2]
[365379326,1749633041949,-202.22837866,0.00019811,2]
[365379328,1749633041958,-1000.0,0.00019813,2]
[365379330,1749633041969,-1318.06236129,0.00019816,2]
[365379332,1749633041978,-1318.06236129,0.00019837,2]
[365379334,1749633041987,-500.0,0.00019839,2]
[365379336,1749633041996,-500.0,0.0001984,2]
[365379338,1749633042006,-1318.06236129,0.00019858,2]
[365379340,1749633042016,-703.77568104,0.00019873,2]
[365379341,1749633042026,-703.77568097,0.00019876,2]
[365379343,1749633042035,-1318.06236129,0.00019879,2]
[365379345,1749633042045,-703.77568097,0.00019879,2]
[365379347,1749633042056,-281.623,0.0001989,2]
[365379349,1749633042066,-910.11,0.0001989,2]
[365379351,1749633042076,-910.11,0.0001989,2]
[365379353,1749633042086,-9808.5813,0.000199,2]
[365379355,1749633042095,-28248.10373835,0.000199,2]
[365379357,1749633042104,-160.83468592,0.000199,2]
[365379359,1749633042114,-1318.06236129,0.000199,2]
[365379361,1749633042122,-217.19443655,0.000199,2]
[365379363,1749633042133,-1275.70845675,0.000199,2]
[365379365,1749633042141,-500.05755497,0.00019973,2]
[365379367,1749633042150,-500.0,0.00019973,2]
[365379369,1749633042159,-502.27276169,0.00019973,2]
[365379371,1749633042169,-500.0,0.00019973,2]
[365379373,1749633042178,-500.0,0.00019973,2]
[365379375,1749633042186,-910.11,0.00019976,2]
[365379377,1749633042196,-485.97193233,0.0001998,2]
[365379379,1749633042205,-10644.9118158,0.00019986,2]
[365379381,1749633042215,-8542.9605341,0.00019986,2]
[365379383,1749633042224,-6441.0092525,0.00019986,2]
[365379385,1749633042234,-4339.0579708,0.00019986,2]
[365379387,1749633042243,-2237.1066891,0.00019986,2]
[365379389,1749633042252,-2105.094496,0.00019986,2]
[365379391,1749633042262,-1748.4776583,0.00019986,2]
[365379393,1749633042271,-1391.8608206,0.00019986,2]
[365379395,1749633042282,-1035.2439829,0.00019986,2]
[365379397,1749633042291,-678.6271453,0.00019986,2]
[365379399,1749633042300,-2453.90021154,0.00019987,2]
[365379401,1749633042309,-196.64,0.0001999,5]
[365379403,1749633042319,-182.0,0.0001999,5]
[365379405,1749633042328,-182.0,0.0001999,5]
[365379407,1749633042338,-182.0,0.0001999,5]
[365379409,1749633042347,-183.0,0.0001999,5]
[365379411,1749633042356,-12746.8630975,0.00019996,2]
[365379413,1749633042366,-2461.7113336,0.00019996,2]
[365379415,1749633042375,-1037.6829,0.00019999,2]
[365379417,1749633042384,-155.62,0.00019999,2]
[365379419,1749633042393,-500.0,0.00019999,2]
[365379421,1749633042403,-150.0,0.00019999,2]
[365379423,1749633042413,-554.0,0.0002,2]
[365379425,1749633042422,-125799.22793078,0.0002,3]
[365379459,1749633042730,-332.01552581,0.0002,3]
[365379461,1749633042742,-500.0,0.0002,3]
[365379465,1749633042772,-288.07999384,0.0002,3]
[365379468,1749633042784,-1004.4,0.0002,3]
[365379473,1749633042829,-3094.86716903,0.0002,3]
[365379476,1749633042844,-723.21934277,0.0002,3]
[365379529,1749633043227,-200.0,0.00017023,2]
[365379531,1749633043237,-434.57835052,0.00019882,2]
[365379535,1749633043265,-269.19733045,0.00019882,2]
[365379537,1749633043274,-251.80266955,0.0002,3]
[365379539,1749633043287,-5468.5,0.0002,3]
[365379541,1749633043297,-11782.22222814,0.0002,3]
[365379544,1749633043311,-1723.032864,0.0002,3]
[365379548,1749633043343,-65558.35155503,0.0002,3]
[365379550,1749633043353,-1429.47060931,0.0002,3]
[365379552,1749633043363,-101084.7806151,0.0002,2]
[365379554,1749633043374,-717.2426853,0.0002,2]
[365379568,1749633043504,-718088.50270021,0.0002,2]
[365379571,1749633043516,-859569.38861321,0.0002,2]
[365379658,1749633046024,-498.93,0.00017193,2]
[365379659,1749633046035,-9719.29709186,0.0002,2]
[365379660,1749633046062,-10780.78183628,0.0002,2]
[365379661,1749633046075,-13835.00000001,0.0002,2]
[365379662,1749633046139,-373.22169948,0.0002,2]
[365379663,1749633046151,-5867.30468928,0.0002,2]
[365379664,1749633046164,-1421.44181112,0.0002,2]
[365379665,1749633046245,-113514.54789269,0.0002,2]
[365379666,1749633046257,-2127.58634544,0.0002,2]
[365379667,1749633046301,-400.0,0.0002,2]
[365379668,1749633046312,-1435.71016166,0.0002,2]
[365379669,1749633046323,-528.44129525,0.0002,2]
[365379670,1749633046407,-515.82099314,0.0002,2]
[365379673,1749633099921,165.43,0.00013699,2]
[365379675,1749633443490,1649.33,0.00024658,120]
[365379677,1749633549906,526.02758,0.000192,30]
[365379678,1749633637922,302.0,0.00024658,120]
[365379679,1749633820762,1333.0,0.00024078,120]
[365379680,1749634029121,-500.0,0.00016164,2]
[365379681,1749634029144,-600.0,0.0001628,4]
[365379682,1749634029321,-300.0,0.00016395,2]
[365379683,1749634029401,-151.0,0.00016687,2]
[365379684,1749634029423,-600.0,0.00016694,4]
[365379685,1749634029444,-1200.0,0.0001711,2]
[365379686,1749634029465,-300.0,0.0001711,2]
[365379687,1749634029485,-300.0,0.0001711,2]
[365379688,1749634029505,-303.94,0.00017111,2]
[365379689,1749634029526,-135.59776838,0.00017111,2]
[365379691,1749634050132,-169.73223162,0.00017111,2]
[365379692,1749634050155,-302.69,0.00017111,2]
[365379693,1749634050176,-304.88,0.00017111,2]
[365379694,1749634050201,-304.85,0.00017111,2]
[365379695,1749634050224,-326.01022116,0.00017111,2]
[365379696,1749634084049,500.0,0.00024657,120]
[365379697,1749634094154,158.65,0.00013699,2]
[365379700,1749634118201,19177.56569117,0.000151,2]
[365379701,1749634118230,3003.29454889,0.000151,2]
[365379702,1749634167145,-500.0,0.00016164,2]
[365379703,1749634167166,-422.85509554,0.00016164,2]
[365379709,1749634178497,174.53,0.00014008,2]
[365379718,1749634232369,-55.81930354,0.00016164,2]
[365379719,1749634232379,-378.83977884,0.00017111,2]
[365379720,1749634232388,-305.23,0.00017111,2]
[365379721,1749634232397,-305.34,0.00017113,2]
[365379722,1749634232406,-600.0,0.00017118,4]
[365379723,1749634232415,-302.3,0.00017126,2]
[365379724,1749634232427,-294.42493522,0.00017192,2]
[365379725,1749634232438,-905.57506478,0.00017192,2]
[365379726,1749634232447,-300.0,0.00017192,2]
[365379727,1749634232456,-300.0,0.00017192,2]
[365379728,1749634232466,-232.0,0.00017192,2]
[365379729,1749634232475,-24.84700443,0.00017193,2]
[365379730,1749634232487,-465.47299557,0.00017193,2]
[365379731,1749634232496,-301.81,0.00017193,2]
[365379732,1749634232505,-301.05,0.00017193,2]
[365379733,1749634232515,-300.01,0.00017193,2]
[365379734,1749634232524,-303.65,0.00017193,2]
[365379735,1749634232533,-496.33,0.00017193,2]
[365379736,1749634232542,-494.22,0.00017193,2]
[365379737,1749634232552,-496.33,0.00017193,2]
[365379738,1749634232561,-505.46,0.00017193,2]
[365379739,1749634232571,-507.35,0.00017193,2]
[365379740,1749634232581,-494.6,0.00017193,2]
[365379741,1749634232591,-507.4,0.00017193,2]
[365379742,1749634232600,-600.0,0.00017209,4]
[365379743,1749634232611,-2461.86,0.00017316,2]
[365379744,1749634232620,-503.0,0.00017425,2]
[365379745,1749634232631,-353.79,0.0001751,2]
[365379746,1749634232640,-4537.47,0.00017528,2]
[365379747,1749634232649,-2025.69,0.00017573,2]
[365379748,1749634232658,-158.98,0.00017586,2]
[365379749,1749634232667,-8525.63,0.00017587,2]
[365379750,1749634232677,-201.51,0.00017624,2]
[365379751,1749634232686,-550.0,0.00017759,2]
[365379752,1749634232696,-202.0,0.0001776,2]
[365379753,1749634232705,-208.93265348,0.00017763,2]
[365379754,1749634232715,-334.21,0.00017773,2]
[365379755,1749634232724,-150.41,0.0001778,2]
[365379756,1749634232733,-300.0,0.0001778,2]
[365379757,1749634232743,-300.0,0.0001778,2]
[365379758,1749634232751,-600.0,0.0001778,4]
[365379759,1749634232760,-600.0,0.0001778,4]
[365379760,1749634232769,-1000.0,0.00017792,2]
[365379761,1749634232778,-250.0,0.00017795,2]
[365379762,1749634232787,-1189.0,0.0001785,2]
[365379763,1749634232795,-150.0,0.00017871,7]
[365379764,1749634232804,-20309.89699063,0.00017888,2]
[365379765,1749634232820,-6735.76378453,0.00017888,2]
[365379766,1749634232832,-697.8118815,0.00017888,2]
[365379767,1749634232843,-425.18333004,0.00017888,2]
[365379768,1749634232866,-500.0,0.00017586,2]
[365379769,1749634232875,-197.94074712,0.00017586,2]
[365379770,1749634232884,-1412.57357687,0.00017888,2]
[365379771,1749634233006,-335.535,0.00017586,2]
[365379772,1749634233072,-4.85709148,0.00017586,2]
[365379773,1749634233081,-219.03923376,0.00017586,2]
[365379774,1749634233091,-380.14814233,0.00017586,2]
[365379775,1749634233103,-119.85185767,0.00017586,2]
[365379776,1749634233112,-500.0,0.00017586,2]
[365379777,1749634233122,-500.0,0.00017586,2]
[365379778,1749634233131,-500.0,0.00017586,2]
[365379779,1749634233141,-500.0,0.00017586,2]
[365379780,1749634233152,-500.0,0.00017586,2]
[365379781,1749634233165,-461.51410216,0.00017586,2]
[365379782,1749634233175,-500.0,0.00017586,2]
[365379783,1749634233185,-500.0,0.00017586,2]
[365379784,1749634233196,-500.0,0.00017586,2]
[365379785,1749634233207,-471.55921916,0.00017586,2]
[365379786,1749634233217,-516.97467872,0.00017586,2]
[365379787,1749634233227,-1240.36354521,0.00017888,2]
[365379788,1749634233240,-353.48879533,0.00017888,2]
[365379789,1749634233252,-800.0,0.00017888,2]
[365379790,1749634233294,-255.24588608,0.00017586,2]
[365379791,1749634233311,-244.75411392,0.00017586,2]
[365379792,1749634233322,-500.0,0.00017586,2]
[365379793,1749634233334,-4036.30858422,0.00017888,2]
[365379794,1749634233385,-500.0,0.00017586,2]
[365379795,1749634233396,-2776.99295857,0.00017888,2]
[365379796,1749634233429,-181.38307142,0.00017888,2]
[365379797,1749634233446,-311.44622804,0.00017586,2]
[365379798,1749634233456,-13603.00532465,0.00017888,2]
[365379799,1749634233466,-300.15724222,0.00017897,2]
[365379800,1749634233476,-182.24021869,0.00017897,2]
[365379801,1749634233485,-325.74243322,0.00017897,2]
[365379802,1749634233495,-383.41380317,0.00017897,2]
[365379803,1749634233505,-5141.67551815,0.00017898,2]
[365379812,1749634238143,-500.0,0.00017586,2]
[365379813,1749634238152,-500.0,0.00017586,2]
[365379814,1749634238163,-988.42,0.00017898,2]
[365379815,1749634238201,-518.6,0.00017898,2]
[365379816,1749634238212,-660.82813189,0.00017898,2]
[365379817,1749634238265,-1128.21769653,0.00017898,2]
[365379818,1749634238276,-516.01,0.00017898,2]
[365379819,1749634238287,-1780.01814426,0.00017898,2]
[365379820,1749634238322,-250.35415523,0.00017898,2]
[365379821,1749634238335,-3898.79997412,0.00017898,2]
[365379822,1749634238347,-9017.07637982,0.00017898,2]
[365379823,1749634238356,-374.48220426,0.000179,2]
[365379824,1749634238365,-2548.73615211,0.0001793,2]
[365379825,1749634238484,-1091.1705317,0.0001793,2]
[365379826,1749634238496,-2376.53318732,0.0001793,2]
[365379827,1749634238540,-1008.945,0.0001793,2]
[365379976,1749634240287,-1782.16512887,0.0001793,2]
[365379978,1749634240296,-666.0,0.0001793,2]
[365379980,1749634240306,-1022.16314549,0.00017939,2]
[365379982,1749634240316,-374.48220421,0.00017969,2]
[365379984,1749634240326,-64.16658293,0.00017992,2]
[365379987,1749634240339,-85.83341707,0.00017992,2]
[365379989,1749634240349,-151.72,0.00018,2]
[365379991,1749634240358,-7761.14,0.00018002,2]
[365379993,1749634240368,-374.48220421,0.00018038,2]
[365379994,1749634240380,-534.28126871,0.0001804,2]
[365379997,1749634240404,-2216.71873129,0.0001804,2]
[365379999,1749634240420,-260.01,0.00018041,2]
[365380001,1749634240429,-2992.77126871,0.00018058,2]
[365380003,1749634240440,-5512.68873129,0.00018058,2]
[365380005,1749634240450,-374.48220421,0.00018107,2]
[365380007,1749634240459,-374.48220421,0.00018176,2]
[365380009,1749634240469,-374.48220421,0.00018245,2]
[365380011,1749634240480,-374.48220421,0.00018314,2]
[365380013,1749634240489,-1540.99,0.00018357,2]
[365380015,1749634240498,-374.48220421,0.00018383,2]
[365380017,1749634240507,-374.48220421,0.00018452,2]
[365380019,1749634240516,-374.48220421,0.00018521,2]
[365380021,1749634240524,-1484.6350164,0.00018559,2]
[365380023,1749634240533,-374.48220421,0.0001859,2]
[365380025,1749634240542,-374.48220421,0.00018659,2]
[365380027,1749634240552,-420.0,0.00018685,2]
[365380029,1749634240563,-1484.63501637,0.00018708,2]
[365380031,1749634240572,-168.66,0.00018722,2]
[365380033,1749634240583,-374.48220421,0.00018728,2]
[365380036,1749634240594,-420.0,0.00018774,2]
[365380038,1749634240603,-374.48220421,0.00018797,2]
[365380040,1749634240613,-600.0,0.00018822,4]
[365380042,1749634240623,-1484.63501637,0.00018857,2]
[365380044,1749634240632,-374.48220421,0.00018866,2]
[365380045,1749634240641,-666.0,0.00018867,2]
[365380047,1749634240650,-500.0,0.00018904,2]
[365380049,1749634240659,-374.48220421,0.00018934,2]
[365380051,1749634240669,-151.0,0.00018999,2]
[365380053,1749634240678,-1957.856,0.00018999,2]
[365380055,1749634240687,-152.92395662,0.00018999,2]
[365380057,1749634240697,-500.0,0.00018999,2]
[365380059,1749634240707,-500.0,0.00018999,2]
[365380061,1749634240716,-477.08866842,0.00018999,2]
[365380063,1749634240725,-207.4,0.00018999,2]
[365380065,1749634240735,-250.0,0.00019,2]
[365380068,1749634240744,-374.48220421,0.00019003,2]
[365380069,1749634240753,-1484.63501637,0.00019006,2]
[365380071,1749634240762,-2093.9921025,0.00019054,2]
[365380073,1749634240771,-374.48220421,0.00019072,2]
[365380076,1749634240781,-374.48220421,0.00019141,2]
[365380078,1749634240790,-1000.0,0.0001915,2]
[365380080,1749634240800,-1484.63501637,0.00019155,2]
[365380082,1749634240809,-500.0,0.00019178,2]
[365380084,1749634240820,-500.0,0.00019178,2]
[365380086,1749634240830,-207.40067749,0.00019178,2]
[365380088,1749634240839,-909.7,0.00019178,2]
[365380090,1749634240848,-374.48220421,0.0001921,2]
[365380092,1749634240857,-374.48220421,0.00019279,2]
[365380094,1749634240868,-1484.63501637,0.00019304,2]
[365380096,1749634240877,-374.48220421,0.00019348,2]
[365380098,1749634240886,-704.85,0.00019375,2]
[365380100,1749634240896,-374.48220421,0.00019417,2]
[365380102,1749634240906,-1484.63501637,0.00019453,2]
[365380104,1749634240915,-150.0,0.00019455,2]
[365380106,1749634240924,-150.0,0.00019482,2]
[365380108,1749634240933,-374.48220421,0.00019486,2]
[365380110,1749634240942,-947.53,0.0001949,2]
[365380112,1749634240951,-1093.7223,0.000195,2]
[365380114,1749634240961,-2079.29631063,0.000195,2]
[365380116,1749634240973,-3087.20969645,0.000195,2]
[365380118,1749634240984,-1099.71612286,0.000195,2]
[365380120,1749634240995,-22237.77787006,0.000195,2]
[365380122,1749634241005,-150.0,0.0001951,2]
[365380125,1749634241014,-202.0,0.0001952,4]
[365380126,1749634241023,-150.0,0.00019537,2]
[365380128,1749634241033,-374.48220421,0.00019555,2]
[365380130,1749634241042,-150.0,0.00019565,2]
[365380133,1749634241051,-206.83203351,0.00019592,2]
[365380135,1749634241061,-1484.63501637,0.00019602,2]
[365380137,1749634241070,-374.48220421,0.00019624,2]
[365380139,1749634241081,-171.53872258,0.00019654,2]
[365380141,1749634241090,-947.53,0.0001969,2]
[365380143,1749634241099,-374.48220421,0.00019693,2]
[365380145,1749634241108,-38604.2,0.000197,2]
[365380168,1749634241314,-396.0493,0.0001971,2]
[365380171,1749634241345,-638.9689,0.0001971,2]
[365380173,1749634241355,-2500.0,0.0001971,2]
[365380175,1749634241364,-1629.21602004,0.00019712,2]
[365380177,1749634241374,-171.53872257,0.00019716,2]
[365380179,1749634241384,-1629.21601997,0.00019733,2]
[365380181,1749634241394,-1484.63501637,0.00019751,2]
[365380184,1749634241403,-1629.21601997,0.00019754,2]
[365380186,1749634241413,-374.48220421,0.00019762,2]
[365380188,1749634241422,-1629.21601997,0.00019775,2]
[365380190,1749634241431,-171.53872257,0.00019777,2]
[365380191,1749634241440,-1629.21601997,0.00019796,2]
[365380193,1749634241449,-5562.0,0.000198,3]
[365380195,1749634241459,-947.53,0.000198,2]
[365380197,1749634241468,-947.53,0.000198,2]
[365380199,1749634241477,-947.53,0.000198,2]
[365380201,1749634241486,-26449.94850462,0.0001981,2]
[365380203,1749634241495,-114381.94766577,0.0001981,2]
[365380205,1749634241504,-1629.21601997,0.00019816,2]
[365380207,1749634241513,-374.48220421,0.00019831,2]
[365380209,1749634241522,-1629.21601997,0.00019837,2]
[365380211,1749634241531,-171.53872257,0.00019839,2]
[365380213,1749634241541,-500.0,0.00019839,2]
[365380215,1749634241551,-500.0,0.0001984,2]
[365380217,1749634241559,-1629.21601997,0.00019858,2]
[365380219,1749634241568,-1629.21601997,0.00019879,2]
[365380221,1749634241578,-793.882026,0.00019884,2]
[365380223,1749634241589,-497.17,0.00019885,2]
[365380225,1749634241598,-508.08,0.00019885,2]
[365380226,1749634241606,-281.623,0.0001989,2]
[365380227,1749634241615,-160.83468592,0.000199,2]
[365380228,1749634241625,-328.868,0.000199,2]
[365380229,1749634241633,-1629.21601997,0.000199,2]
[365380230,1749634241643,-13406.9574026,0.000199,2]
[365380231,1749634241652,-171.53872257,0.000199,2]
[365380232,1749634241661,-1275.70845675,0.000199,2]
[365380233,1749634241670,-1484.63501637,0.000199,2]
[365380234,1749634241679,-374.48220421,0.000199,2]
[365380235,1749634241687,-18743.36,0.000199,2]
[365380237,1749634241695,-500.0,0.00019973,2]
[365380239,1749634241705,-307.0,0.00019973,2]
[365380241,1749634241715,-500.05755497,0.00019973,2]
[365380243,1749634241724,-500.0,0.00019973,2]
[365380245,1749634241733,-502.27276169,0.00019973,2]
[365380247,1749634241742,-500.0,0.00019973,2]
[365380249,1749634241751,-500.0,0.00019973,2]
[365380250,1749634241760,-60003.09522916,0.0001998,2]
[365380252,1749634241770,-485.97193233,0.0001998,2]
[365380254,1749634241779,-341.9043519,0.00019986,2]
[365380256,1749634241788,-341.9043519,0.00019986,2]
[365380258,1749634241798,-341.9043519,0.00019986,2]
[365380260,1749634241807,-341.9043519,0.00019986,2]
[365380263,1749634241816,-341.9043519,0.00019986,2]
[365380265,1749634241825,-6004.6367523,0.00019986,2]
[365380267,1749634241836,-4921.8046796,0.00019986,2]
[365380269,1749634241845,-3838.972607,0.00019986,2]
[365380271,1749634241854,-2756.1405344,0.00019986,2]
[365380273,1749634241863,-1673.3084617,0.00019986,2]
[365380275,1749634241872,-6777.4891494,0.00019986,2]
[365380277,1749634241881,-5557.8854891,0.00019986,2]
[365380279,1749634241890,-4338.2818288,0.00019986,2]
[365380281,1749634241899,-3118.6781685,0.00019986,2]
[365380283,1749634241908,-1899.0745083,0.00019986,2]
[365380285,1749634241917,-835.1470967,0.00019986,2]
[365380287,1749634241927,-697.872986,0.00019986,2]
[365380289,1749634241936,-560.5988754,0.00019986,2]
[365380291,1749634241946,-423.3247647,0.00019986,2]
[365380293,1749634241954,-286.0506541,0.00019986,2]
[365380295,1749634241963,-155.0,0.00019989,2]
[365380297,1749634241972,-6374.06,0.00019989,2]
[365380299,1749634241981,-2446.366,0.00019989,2]
[365380301,1749634241990,-83171.42583828,0.0001999,2]
[365380303,1749634241999,-158.54,0.0001999,2]
[365380305,1749634242008,-155.62051938,0.0001999,2]
[365380307,1749634242017,-199.82194013,0.00019996,2]
[365380309,1749634242026,-341.9043519,0.00019996,2]
[365380311,1749634242035,-410.28522269,0.00019996,2]
[365380313,1749634242044,-7087.4688249,0.00019996,2]
[365380315,1749634242053,-7997.0928096,0.00019996,2]